bitfinex/quotes_SOLUSD_20240718
["timestamp","ask_amount","ask_price","bid_price","bid_amount"]
[1721333711717,12.47,156.53,156.51,6.3893]
[1721333712758,12.47,156.54,156.51,6.3893]
[1721333713127,1.59727555,156.53,156.51,6.3893]
[1721333713326,12.47,156.54,156.51,6.3893]
[1721333713531,1.59718496,156.53,156.51,6.3892]
[1721333713749,1.59718496,156.53,156.5,16.48046287]
[1721333713950,1.59718496,156.53,156.5,16.31046287]
[1721333714150,14.06718496,156.53,156.5,16.31046287]
[1721333714351,12.47,156.53,156.5,16.31046287]
[1721333715032,12.47,156.53,156.51,6.3892]
[1721333715235,12.47,156.54,156.51,6.3892]
[1721333715753,1.59724917,156.53,156.51,6.3892]
[1721333716761,12.47,156.54,156.51,6.3892]
[1721333717057,12.47,156.55,156.52,6.3888]
[1721333717363,12.47,156.56,156.52,6.3888]
[1721333717560,14.06711107,156.56,156.52,6.3888]
[1721333717866,14.06711107,156.56,156.53,6.3884]
[1721333718363,14.06711107,156.56,156.52,6.3888]
[1721333718538,12.47,156.56,156.52,6.3888]
[1721333718947,1.59704739,156.55,156.51,28.451286]
[1721333719133,1.59704739,156.55,156.52,0.17]
[1721333719647,1.59704739,156.55,156.51,28.451286]
[1721333719849,1.59704739,156.55,156.51,15.981286]
[1721333720049,1.59704739,156.55,156.51,28.451286]
[1721333720243,14.06704739,156.55,156.51,15.981286]
[1721333720442,12.47,156.55,156.51,15.981286]
[1721333721458,12.47,156.55,156.51,15.98172724]
[1721333722566,12.47,156.55,156.51,15.98113643]
[1721333723463,12.47,156.53,156.51,9.59193643]
[1721333723769,14.06732991,156.52,156.5,9.91923643]
[1721333724071,12.47,156.53,156.5,16.30893643]
[1721333724262,12.47,156.54,156.5,16.30893643]
[1721333724668,12.47,156.54,156.5,16.30400532]
[1721333724844,12.47,156.55,156.5,28.77400532]
[1721333725165,12.47,156.55,156.51,6.3892]
[1721333725375,1.59711278,156.54,156.51,6.3892]
[1721333725868,1.59712827,156.56,156.53,6.3882]
[1721333726056,1.59697939,156.6,156.53,18.8582]
[1721333726263,12.47,156.58,156.53,18.8584]
[1721333726567,14.06696477,156.57,156.53,6.3884]
[1721333726757,1.59696456,156.56,156.53,6.3884]
[1721333727148,12.47,156.59,156.53,12.47]
[1721333727339,12.47,156.59,156.55,6.3877]
[1721333727340,14.06678586,156.59,156.55,6.3877]
[1721333727742,1.59678586,156.59,156.55,18.8577]
[1721333728269,14.06678586,156.59,156.55,6.3877]
[1721333728651,14.06678586,156.59,156.54,18.858]
[1721333729367,14.06678586,156.59,156.55,6.5575]
[1721333730443,12.47,156.58,156.55,0.17]
[1721333731083,12.47,156.59,156.55,6.5577]
[1721333731261,12.47,156.59,156.56,6.3872]
[1721333733261,12.47,156.59,156.55,6.5575]
[1721333735081,12.47,156.59,156.56,6.3873]
[1721333735457,12.47,156.6,156.56,6.7146]
[1721333736175,12.47,156.6,156.57,6.3868]
[1721333736872,12.47,156.6,156.56,6.7144]
[1721333737759,12.47,156.6,156.57,6.3869]
[1721333738174,12.47,156.6,156.56,6.7145]
[1721333738865,12.47,156.6,156.56,7.99177547]
[1721333739076,12.47,156.61,156.57,6.5568]
[1721333739378,12.47,156.6,156.57,6.5568]
[1721333741270,12.47,156.61,156.57,6.5568]
[1721333742178,12.47,156.62,156.57,6.5568]
[1721333742380,1.59647685,156.61,156.57,6.5568]
[1721333743254,12.47,156.6,156.57,0.17]
[1721333743481,12.47,156.61,156.57,0.17]
[1721333743860,12.47,156.61,156.57,6.5568]
[1721333744579,14.06648649,156.6,156.57,6.5568]
[1721333744782,1.59660315,156.59,156.56,6.3873]
[1721333746798,12.47,156.61,156.57,6.3868]
[1721333747086,1.59659606,156.6,156.57,6.3868]
[1721333747456,1.59659517,156.63,156.58,6.3864]
[1721333747680,14.06659517,156.63,156.59,6.3859]
[1721333747878,14.06659517,156.63,156.6,6.3856]
[1721333748082,1.59659517,156.63,156.6,6.3856]
[1721333748668,1.59659517,156.63,156.59,18.8559]
[1721333750085,12.47,156.64,156.6,7.83251818]
[1721333750395,1.59621818,156.63,156.6,6.5554]
[1721333750877,12.47,156.65,156.6,19.0254]
[1721333751193,1.59623339,156.64,156.6,19.0254]
[1721333751567,12.47,156.66,156.61,14.07428697]
[1721333751867,14.06623371,156.67,156.62,6.3846]
[1721333752476,1.59599303,156.66,156.62,6.3846]
[1721333752677,1.59599303,156.66,156.62,7.66139452]
[1721333752998,14.06599315,156.67,156.62,7.66139452]
[1721333754064,12.47,156.67,156.63,0.4973]
[1721333754563,1.59588228,156.66,156.63,0.17]
[1721333754969,1.59588228,156.66,156.62,0.34]
[1721333755195,14.06588228,156.66,156.62,0.34]
[1721333755386,12.47,156.66,156.62,0.34]
[1721333755703,14.065905,156.65,156.62,0.17]
[1721333755871,12.47,156.65,156.62,0.17]
[1721333757094,1.59600066,156.68,156.63,6.3844]
[1721333757391,14.06598318,156.67,156.63,6.3844]
[1721333757596,12.47,156.68,156.63,6.7117]
[1721333757788,1.59588533,156.67,156.63,6.7117]
[1721333758168,1.59588533,156.67,156.63,19.1817]
[1721333758874,1.59588533,156.67,156.63,6.7117]
[1721333759581,12.47,156.67,156.63,6.7117]
[1721333759782,12.47,156.67,156.63,6.3844]
[1721333759783,1.5958782,156.66,156.63,6.3844]
[1721333759986,1.5958782,156.66,156.63,6.7117]
[1721333761397,1.5958782,156.66,156.63,0.3273]
[1721333761591,12.47,156.68,156.64,0.17]
[1721333761893,1.59583564,156.67,156.64,0.17]
[1721333762270,1.59583301,156.7,156.64,12.64]
[1721333762477,12.47,156.69,156.64,12.64]
[1721333762788,14.06582285,156.68,156.64,0.17]
[1721333762987,1.59582264,156.67,156.64,0.17]
[1721333763286,1.59582123,156.71,156.65,12.7973]
[1721333763493,14.06565955,156.7,156.66,1.27652764]
[1721333763674,1.59565955,156.7,156.65,12.7973]
[1721333764389,1.59565955,156.7,156.66,12.47]
[1721333764900,1.59565955,156.7,156.65,12.7973]
[1721333765193,1.59565955,156.7,156.66,0.17]
[1721333765766,14.06565955,156.7,156.66,0.17]
[1721333765972,12.47,156.7,156.66,0.17]
[1721333766692,1.59561589,156.72,156.67,12.7973]
[1721333766990,1.59545529,156.75,156.69,12.7973]
[1721333767183,14.06545529,156.75,156.69,12.7973]
[1721333767492,1.59545529,156.75,156.7,12.47]
[1721333767691,1.59545529,156.75,156.7,12.64]
[1721333768084,1.59545529,156.75,156.71,14.07341332]
[1721333768288,1.59514165,156.78,156.72,12.47]
[1721333768498,12.47,156.77,156.73,0.17]
[1721333768796,1.59492516,156.76,156.73,0.17]
[1721333770393,12.47,156.77,156.73,0.4973]
[1721333770586,12.47,156.77,156.75,0.3273]
[1721333770771,12.47,156.79,156.75,0.3273]
[1721333770969,1.59465056,156.78,156.75,0.3273]
[1721333771175,1.59465056,156.78,156.74,12.64]
[1721333771369,1.59465056,156.78,156.75,0.17]
[1721333771580,1.59465056,156.78,156.74,0.17]
[1721333772506,1.59465056,156.78,156.75,0.3273]
[1721333773002,12.47,156.8,156.75,14.07305305]
[1721333773192,1.59464731,156.79,156.75,12.7973]
[1721333773499,14.06464731,156.79,156.74,12.64]
[1721333773705,1.59470306,156.78,156.75,0.17]
[1721333773999,14.06470306,156.78,156.74,0.17]
[1721333774199,12.47,156.78,156.75,0.3273]
[1721333774378,12.47,156.79,156.75,0.3273]
[1721333774577,1.59469421,156.82,156.77,12.7973]
[1721333774880,15.94066016,157.01,156.77,12.7973]
[1721333774881,1.59441138,156.84,156.79,0.3273]
[1721333775072,12.47,156.84,156.79,0.3273]
[1721333775277,1.59427366,156.87,156.79,12.7973]
[1721333775596,12.47,156.84,156.8,0.17]
[1721333775902,1.59427366,156.87,156.8,0.17]
[1721333776198,1.59427366,156.87,156.81,12.7973]
[1721333776199,14.06427366,156.87,156.81,12.7973]
[1721333776574,12.47,156.87,156.81,12.7973]
[1721333776886,12.47,156.87,156.82,1.44517055]
[1721333777304,12.47,156.87,156.83,0.3273]
[1721333778199,12.47,156.87,156.82,0.17]
[1721333778497,12.47,156.87,156.82,0.34]
[1721333778700,12.47,156.87,156.83,0.3273]
[1721333780497,12.47,156.87,156.82,12.81]
[1721333780806,12.47,156.87,156.82,0.34]
[1721333781178,12.47,156.87,156.83,0.3273]
[1721333781377,12.47,156.88,156.83,12.7973]
[1721333781607,1.59388316,156.9,156.84,13.74505659]
[1721333781785,1.59371539,156.89,156.85,12.47]
[1721333782101,1.59369938,156.92,156.85,12.47]
[1721333782306,12.47,156.9,156.85,0.3273]
[1721333782478,12.47,156.91,156.86,12.47]
[1721333782673,1.59359616,156.9,156.85,29.82777728]
[1721333782878,12.47,156.91,156.87,0.3273]
[1721333783907,12.47,156.92,156.87,12.7973]
[1721333784210,1.59340664,156.93,156.87,12.7973]
[1721333784502,6.3711,156.96,156.88,0.17]
[1721333784503,14.06333571,156.92,156.88,0.17]
[1721333784709,12.47,156.92,156.88,0.17]
[1721333785280,12.47,156.89,156.85,15.7556]
[1721333785509,12.47,156.87,156.82,12.47]
[1721333785683,12.47,156.85,156.81,15.9323]
[1721333786011,19.19,156.91,156.81,15.9323]
[1721333786012,12.47,156.86,156.81,28.4023]
[1721333786299,12.47,156.87,156.83,0.3273]
[1721333787114,12.47,156.87,156.84,0.17]
[1721333787798,1.59377222,156.91,156.84,0.17]
[1721333788007,12.47,156.88,156.84,0.17]
[1721333788196,12.47,156.88,156.85,0.3273]
[1721333788398,12.47,156.89,156.85,0.3273]
[1721333788894,12.47,156.89,156.85,1.60220702]
[1721333789275,12.47,156.9,156.85,1.60220702]
[1721333789579,1.59363725,156.89,156.85,1.60220702]
[1721333789989,12.47,156.9,156.85,14.07220702]
[1721333790205,12.47,156.91,156.86,12.47]
[1721333790400,1.5935046,156.9,156.86,12.47]
[1721333790793,12.47,156.91,156.86,12.47]
[1721333791003,12.47,156.91,156.85,12.7973]
[1721333791301,12.47,156.91,156.86,0.17]
[1721333791682,12.47,156.91,156.87,0.3273]
[1721333792612,14.06352923,156.93,156.88,12.64]
[1721333792813,14.06352923,156.93,156.89,0.3273]
[1721333792984,1.59352923,156.93,156.89,14.07189138]
[1721333793186,1.59324003,156.96,156.91,0.3273]
[1721333793406,15.9823,157.0,156.91,0.3273]
[1721333793407,7.96293314,156.99,156.91,0.3273]
[1721333793584,12.47,156.95,156.91,0.3273]
[1721333794107,12.47,156.96,156.9,12.64]
[1721333794301,1.59303338,156.98,156.9,0.17]
[1721333794302,14.06303605,156.95,156.9,0.17]
[1721333794484,1.59303605,156.94,156.9,0.34]
[1721333794685,12.47,156.95,156.91,0.3273]
[1721333796386,1.59301586,156.94,156.9,0.34]
[1721333796687,1.59301586,156.94,156.9,0.17]
[1721333796688,14.06301586,156.94,156.9,0.17]
[1721333796883,12.47,156.94,156.91,0.3273]
[1721333797215,12.47,156.95,156.91,0.3273]
[1721333797913,1.59304519,156.94,156.91,0.3273]
[1721333798113,12.47,156.95,156.91,0.3273]
[1721333801191,12.47,156.95,156.9,0.17]
[1721333801192,1.59305429,156.94,156.9,0.17]
[1721333801401,1.59305429,156.94,156.9,0.34]
[1721333802091,1.59305429,156.94,156.9,0.17]
[1721333802319,12.47,156.91,156.87,0.3273]
[1721333802490,12.47,156.96,156.86,15.6179]
[1721333802491,12.47,156.89,156.86,15.6179]
[1721333802820,6.3719,156.94,156.86,15.9452]
[1721333803002,12.47,156.9,156.86,15.9452]
[1721333805909,14.06347565,156.89,156.86,15.6179]
[1721333806099,12.47,156.89,156.86,15.6179]
[1721333806489,1.59361331,156.88,156.86,15.6179]
[1721333806691,14.06361331,156.88,156.85,0.17]
[1721333806907,12.47,156.88,156.85,0.17]
[1721333807124,14.0636685,156.87,156.83,20.0]
[1721333807414,14.06386679,156.86,156.83,20.0]
[1721333807592,12.47,156.87,156.83,20.0]
[1721333808112,14.06387956,156.86,156.82,16.165]
[1721333808321,12.47,156.86,156.82,16.165]
[1721333808696,12.47,156.87,156.82,16.165]
[1721333808886,1.59388875,156.86,156.82,16.165]
[1721333809290,14.06388875,156.86,156.82,16.165]
[1721333809496,12.47,156.86,156.82,16.165]
[1721333809713,1.59391265,156.85,156.82,16.165]
[1721333810692,12.47,156.86,156.82,16.165]
[1721333812319,1.59393746,156.9,156.82,16.165]
[1721333812510,1.59392772,156.89,156.82,16.165]
[1721333812687,12.47,156.86,156.82,16.165]
[1721333812893,12.47,156.86,156.82,17.44014234]
[1721333813306,12.47,156.86,156.82,16.165]
[1721333814414,14.06392638,156.85,156.82,16.165]
[1721333814614,12.47,156.85,156.82,16.165]
[1721333817308,12.47,156.86,156.82,16.165]
[1721333817621,1.59396455,156.85,156.82,16.165]
[1721333818224,12.47,156.86,156.82,17.44016976]
[1721333818608,12.47,156.87,156.83,0.3273]
[1721333818812,12.47,156.88,156.83,0.3273]
[1721333819015,12.47,156.87,156.83,0.3273]
[1721333819615,12.47,156.87,156.84,0.17]
[1721333820213,1.59373295,156.93,156.86,0.3273]
[1721333820411,12.47,156.89,156.86,0.3273]
[1721333821950,12.47,156.9,156.86,0.3273]
[1721333822908,12.47,156.89,156.86,0.3273]
[1721333824126,12.47,156.9,156.86,0.3273]
[1721333824729,12.47,156.89,156.86,0.3273]
[1721333824939,12.47,156.88,156.86,0.3273]
[1721333825145,12.47,156.87,156.86,0.3273]
[1721333825447,7.96634084,156.92,156.86,0.3273]
[1721333825448,12.47,156.88,156.86,0.3273]
[1721333826323,14.06368646,156.87,156.83,20.0]
[1721333826526,12.47,156.86,156.83,20.0]
[1721333827617,12.47,156.86,156.82,16.6623]
[1721333827814,12.47,156.86,156.83,0.17]
[1721333829248,1.59379745,156.9,156.83,0.17]
[1721333829249,12.47,156.88,156.84,0.3273]
[1721333829550,12.47,156.88,156.85,0.17]
[1721333829719,12.47,156.89,156.85,0.17]
[1721333830729,12.47,156.89,156.86,0.3273]
[1721333831747,12.47,156.9,156.88,0.3273]
[1721333831919,12.47,156.91,156.88,0.3273]
[1721333832730,12.47,156.9,156.88,0.3273]
[1721333834250,12.47,156.91,156.88,0.3273]
[1721333835021,6.3716,156.95,156.88,0.3273]
[1721333835022,1.59334068,156.95,156.91,0.3273]
[1721333835225,12.47,156.97,156.91,34.07164307]
[1721333835433,12.47,156.97,156.92,0.17]
[1721333836171,7.96192883,157.01,156.93,0.3273]
[1721333836328,12.47,156.97,156.93,0.3273]
[1721333836527,14.06285418,156.96,156.93,0.3273]
[1721333836865,12.47,156.94,156.88,16.3919]
[1721333837059,12.47,156.9,156.88,16.0646]
[1721333837544,12.47,156.91,156.88,16.0646]
[1721333837749,12.47,156.89,156.84,25.25693333]
[1721333837937,1.59335055,156.9,156.84,25.25693333]
[1721333837938,12.47,156.88,156.84,15.7669]
[1721333838141,12.47,156.86,156.84,15.4396]
[1721333838325,84.9951,156.96,156.81,278.46003333]
[1721333838326,14.06379116,156.85,156.81,256.5]
[1721333838538,12.47,156.82,156.8,15.7669]
[1721333838761,12.47,156.83,156.8,15.7669]
[1721333839523,12.47,156.83,156.81,0.17]
[1721333840052,12.47,156.83,156.81,20.0]
[1721333840261,1.59408113,156.87,156.82,0.3273]
[1721333840437,12.47,156.86,156.82,0.3273]
[1721333840757,12.47,156.84,156.81,0.3273]
[1721333840956,12.47,156.85,156.81,0.3273]
[1721333841261,12.47,156.84,156.8,15.4396]
[1721333841556,12.47,156.84,156.81,0.17]
[1721333841931,12.47,156.84,156.81,20.17]
[1721333842554,1.59402771,156.87,156.81,20.0]
[1721333842770,12.47,156.9,156.85,12.7973]
[1721333843055,12.47,156.92,156.87,0.3273]
[1721333844041,1.59361111,156.95,156.89,0.3273]
[1721333844558,1.59323372,156.96,156.9,0.17]
[1721333844759,1.59305367,156.97,156.91,0.3273]
[1721333845454,1.59305367,156.97,156.9,0.17]
[1721333845964,1.59309786,156.96,156.9,0.17]
[1721333846148,1.59308361,156.95,156.9,0.17]
[1721333846466,1.59309019,156.99,156.9,0.17]
[1721333846648,1.59309421,156.98,156.9,0.17]
[1721333848949,1.59309421,156.98,156.9,1.4444405]
[1721333849466,1.59309421,156.98,156.9,0.17]
[1721333850553,7.96329421,156.98,156.88,35.8595]
[1721333850739,45.0,156.97,156.88,35.8595]
[1721333850947,45.0,156.97,156.89,0.17]
[1721333850948,1.59324356,156.96,156.89,0.17]
[1721333851259,1.593241,156.95,156.89,0.17]
[1721333852247,1.59322032,156.96,156.9,0.3273]
[1721333852640,1.59303765,156.95,156.9,0.3273]
[1721333852840,1.59307496,156.97,156.9,0.3273]
[1721333854181,1.59307496,156.97,156.89,0.17]
[1721333854664,46.59307496,156.97,156.89,0.17]
[1721333856250,1.59307496,156.97,156.9,0.3273]
[1721333859654,1.59307496,156.97,156.89,0.17]
[1721333861174,1.59307496,156.97,156.9,0.3273]
[1721333861879,6.3695,157.0,156.89,0.17]
[1721333861880,1.5930196,157.0,156.94,0.3273]
[1721333862069,1.5930196,157.0,156.95,15.7806]
[1721333862371,1.5930196,157.0,156.95,17.05475323]
[1721333863002,1.59269123,156.99,156.95,17.05475323]
[1721333863286,2.40839742,157.02,156.95,15.7806]
[1721333863480,1.59268905,157.01,156.95,17.05475124]
[1721333865990,1.59268905,157.01,156.96,1.60140098]
[1721333866962,2.40825054,157.02,156.96,1.60140098]
[1721333867165,2.40825054,157.02,156.97,0.17]
[1721333867166,0.8157036,157.02,156.97,0.17]
[1721333868297,0.8157036,157.02,156.96,0.3273]
[1721333868496,1.59240335,157.01,156.95,15.9506]
[1721333868672,1.59240335,157.01,156.96,0.17]
[1721333869490,0.8157036,157.02,156.96,1.77132244]
[1721333869875,0.8157036,157.02,156.96,0.4973]
[1721333872298,12.48,157.0,156.96,0.4973]
[1721333872594,12.48,157.0,156.96,1.77129949]
[1721333872793,12.48,157.01,156.96,12.9773]
[1721333872990,1.59250433,157.0,156.96,12.9773]
[1721333874193,14.07250379,157.01,156.96,12.9773]
[1721333874498,0.8157036,157.02,156.96,12.9773]
[1721333874499,14.88820739,157.02,156.97,13.75400303]
[1721333874796,12.48,157.01,156.96,0.4973]
[1721333874969,1.59245499,157.0,156.96,0.4973]
[1721333875172,12.48,157.01,156.96,0.4973]
[1721333875501,12.48,157.01,156.96,14.25121538]
[1721333875892,12.48,157.01,156.96,12.9773]
[1721333876487,14.07244634,157.0,156.96,0.17]
[1721333876793,14.07244634,157.0,156.96,0.4973]
[1721333876794,12.48,157.0,156.96,0.4973]
[1721333877588,12.48,157.0,156.96,0.17]
[1721333877986,12.48,157.01,156.96,13.92398544]
[1721333878196,12.48,157.01,156.96,14.25128544]
[1721333878873,1.5924815,157.0,156.96,14.25128544]
[1721333879378,12.48,157.01,156.96,14.25128544]
[1721333879579,12.48,157.01,156.96,12.9773]
[1721333880381,12.48,157.01,156.97,1.27396102]
[1721333880908,13.2957036,157.02,156.97,13.75396102]
[1721333882502,13.2957036,157.02,156.98,0.4973]
[1721333882705,13.2957036,157.02,156.98,1.77112043]
[1721333883611,13.2957036,157.02,156.98,0.4973]
[1721333884409,13.2957036,157.02,156.98,0.17]
[1721333885015,13.2957036,157.02,156.97,0.34]
[1721333885509,12.48,157.01,156.97,0.34]
[1721333886010,13.2957036,157.02,156.97,12.82]
[1721333886309,0.8157036,157.02,157.0,12.48]
[1721333886692,0.8157036,157.02,157.01,12.8073]
[1721333886996,0.8157036,157.02,157.01,34.844]
[1721333887211,0.8157036,157.02,157.01,55.184]
[1721333887495,0.8157036,157.02,157.01,100.184]
[1721333894888,12.48,157.11,157.07,0.3273]
[1721333895324,12.48,157.11,157.07,1.60044437]
[1721333895610,1.59143063,157.1,157.06,12.48]
[1721333895814,14.07143063,157.1,157.05,12.9773]
[1721333895995,12.48,157.09,157.06,20.17]
[1721333896201,12.48,157.09,157.06,20.0]
[1721333896886,12.48,157.09,157.05,20.0]
[1721333897119,12.48,157.08,157.05,20.0]
[1721333897410,12.48,157.08,157.04,20.17]
[1721333899115,12.48,157.05,157.01,15.4409]
[1721333899285,12.48,157.02,156.98,0.3273]
[1721333899721,12.48,157.03,157.0,0.3273]
[1721333900320,12.48,157.03,156.98,12.8073]
[1721333900501,27.14863273,157.08,156.98,0.3273]
[1721333900502,12.48,157.02,156.98,0.3273]
[1721333901196,12.48,157.02,156.98,20.3273]
[1721333901437,12.48,157.02,156.98,0.3273]
[1721333901733,12.48,157.04,157.0,0.3273]
[1721333901910,14.07213989,157.03,157.0,0.3273]
[1721333902232,12.48,157.03,157.0,0.3273]
[1721333902607,31.7925,157.27,157.1,0.3273]
[1721333902812,6.379,157.28,157.13,12.8073]
[1721333902813,12.48,157.19,157.13,12.8073]
[1721333903009,2.40643341,157.18,157.13,12.8073]
[1721333903410,14.88643341,157.18,157.13,12.8073]
[1721333903614,2.40643341,157.18,157.13,12.8073]
[1721333904033,2.40643341,157.18,157.14,12.48]
[1721333904230,0.8157036,157.18,157.15,12.8073]
[1721333905204,0.8157036,157.18,157.15,0.3273]
[1721333905412,0.8157036,157.18,157.17,0.3273]
[1721333905632,0.8157036,157.18,157.17,14.41943314]
[1721333905798,0.8157036,157.18,157.17,79.41943314]
[1721333906238,0.8157036,157.18,157.17,91.80943314]
[1721333906433,0.8157036,157.18,157.17,90.5373]
[1721333907323,0.8157036,157.18,157.17,106.56443226]
[1721333908809,0.8157036,157.18,157.17,66.93945691]
[1721333910033,0.8157036,157.18,157.17,65.6673]
[1721333910600,0.8157036,157.18,157.17,90.5373]
[1721333910808,0.8157036,157.34,157.26,0.3273]
[1721333911429,0.8157036,157.34,157.27,0.17]
[1721333911607,0.8157036,157.34,157.28,0.3273]
[1721333912903,0.8157036,157.34,157.33,0.3273]
[1721333913144,0.8157036,157.34,157.33,0.4973]
[1721333913435,0.8157036,157.34,157.33,0.6673]
[1721333913602,0.8157036,157.34,157.33,1.93811206]
[1721333914539,0.8157036,157.34,157.33,0.6673]
[1721333914711,0.8157036,157.34,157.33,1.7681005]
[1721333915222,0.8157036,157.34,157.33,46.9381005]
[1721333915723,0.8157036,157.34,157.33,66.9381005]
[1721333915931,0.8157036,157.34,157.33,20.3273]
[1721333916110,0.8157036,157.34,157.33,20.6673]
[1721333916438,0.8157036,157.34,157.33,21.93820158]
[1721333916735,0.8157036,157.34,157.33,20.6673]
[1721333916939,0.8157036,157.34,157.33,0.6673]
[1721333917530,0.3608036,157.34,157.33,22.15830019]
[1721333917719,0.2847036,157.34,157.33,88.4287565]
[1721333918239,1.58804381,157.48,157.41,0.3273]
[1721333918910,0.8157036,157.5,157.41,0.3273]
[1721333919307,7.1649036,157.5,157.41,0.3273]
[1721333919937,0.8157036,157.5,157.41,0.3273]
[1721333920316,1.58785368,157.49,157.41,1.59758294]
[1721333920614,1.58785313,157.48,157.41,1.59758294]
[1721333921312,1.58785313,157.48,157.43,0.3273]
[1721333921509,0.8157036,157.5,157.43,0.3273]
[1721333922238,0.8157036,157.5,157.42,20.17]
[1721333922421,1.58780731,157.49,157.41,0.3273]
[1721333922626,1.58780251,157.48,157.41,0.3273]
[1721333923425,1.58780251,157.48,157.37,0.3273]
[1721333923629,6.3505,157.47,157.37,0.3273]
[1721333923832,46.58815798,157.46,157.37,0.3273]
[1721333924051,1.58816571,157.45,157.39,0.3273]
[1721333924541,1.58816571,157.45,157.37,0.3273]
[1721333925317,52.93966571,157.45,157.35,0.3273]
[1721333925523,1.58837245,157.44,157.35,0.3273]
[1721333927127,1.58837245,157.44,157.37,0.3273]
[1721333927558,19.19,157.46,157.37,0.3273]
[1721333927718,1.58829194,157.45,157.37,0.3273]
[1721333932451,46.58829194,157.45,157.37,0.3273]
[1721333932630,52.93949194,157.45,157.37,0.3273]
[1721333933829,52.93949194,157.45,157.33,0.3273]
[1721333933830,25.5425,157.42,157.33,0.3273]
[1721333934147,1.58866345,157.41,157.35,0.3273]
[1721333935028,25.4416,157.44,157.35,0.3273]
[1721333935229,45.0,157.43,157.35,0.3273]
[1721333935430,1.588533,157.42,157.35,0.3273]
[1721333935839,1.588533,157.42,157.32,20.0]
[1721333935840,1.588533,157.42,157.37,0.3273]
[1721333936040,1.5883252,157.44,157.37,0.3273]
[1721333937038,7.9399252,157.44,157.37,0.3273]
[1721333937366,20.6783252,157.44,157.35,15.6641]
[1721333937753,27.0300252,157.44,157.35,15.6641]
[1721333940256,51.8700252,157.44,157.35,15.6641]
[1721333940465,1.5884945,157.43,157.35,15.6641]
[1721333940635,1.58849309,157.42,157.35,15.6641]
[1721333941774,1.58849309,157.42,157.36,1.27079339]
[1721333942267,14.24029166,157.48,157.39,0.3273]
[1721333942465,24.84,157.44,157.37,0.3273]
[1721333942646,1.58843055,157.43,157.36,20.0]
[1721333942965,1.58839312,157.42,157.37,0.3273]
[1721333943272,1.58839312,157.42,157.36,20.0]
[1721333943941,1.58840403,157.41,157.36,20.0]
[1721333944156,1.58838963,157.43,157.36,20.0]
[1721333944461,26.42840325,157.44,157.39,0.3273]
[1721333944645,26.42840325,157.44,157.37,1.2707226]
[1721333944646,1.58817344,157.43,157.37,0.3273]
[1721333944974,1.58817344,157.43,157.38,0.17]
[1721333945170,1.58817344,157.43,157.39,0.3273]
[1721333945171,1.58817242,157.43,157.39,0.3273]
[1721333945477,1.58817242,157.43,157.38,0.17]
[1721333946468,1.58817242,157.43,157.39,0.3273]
[1721333946671,1.58815314,157.46,157.39,0.3273]
[1721333946967,1.58815957,157.45,157.39,0.3273]
[1721333947743,1.58815957,157.45,157.38,0.34]
[1721333947941,1.58815957,157.45,157.38,0.17]
[1721333948468,1.58815957,157.45,157.39,0.3273]
[1721333949265,0.8157036,157.5,157.43,0.3273]
[1721333949464,1.58768727,157.49,157.43,0.3273]
[1721333949672,1.58768818,157.48,157.43,0.3273]
[1721333950761,0.8157036,157.5,157.43,0.3273]
[1721333951068,1.58768771,157.49,157.43,1.59745017]
[1721333951271,1.58768525,157.48,157.43,0.74505093]
[1721333951573,1.58768525,157.48,157.43,9.44847738]